bitfinex-derivatives/quotes_ETHF0:USTF0_20251006
["timestamp","ask_amount","ask_price","bid_price","bid_amount"]
[1759746345225,0.64641842,4566.8,4566.7,1.15318492]
[1759746347028,0.00171842,4566.8,4566.7,1.15318492]
[1759746347532,0.22071842,4566.8,4566.7,1.15318492]
[1759746349325,3.2078,4567.6,4567.5,0.39393]
[1759746349326,3.4173,4567.6,4567.5,0.39393]
[1759746349523,0.3103,4568.2,4568.1,0.39387]
[1759746349728,0.4143,4568.2,4568.1,1.16657]
[1759746349928,0.6333,4568.2,4568.1,1.16657]
[1759746350333,3.2078,4568.5,4568.4,1.16655]
[1759746350539,3.20964782,4568.5,4568.4,1.16655]
[1759746350737,3.42864782,4568.5,4568.4,1.16655]
[1759746353331,3.63814782,4568.5,4568.4,1.16655]
[1759746353935,0.43034782,4568.5,4568.4,1.16655]
[1759746356239,0.63514782,4568.5,4568.4,1.16655]
[1759746359933,0.63514782,4568.5,4568.4,0.7727]
[1759746360341,0.41614782,4568.5,4568.4,0.7727]
[1759746360543,0.63514782,4568.5,4568.4,3.9805]
[1759746360739,0.41614782,4568.5,4568.4,3.9805]
[1759746360944,0.41614782,4568.5,4568.4,8.9805]
[1759746366739,0.0782,4569.5,4568.9,0.98452]
[1759746366940,3.2078,4569.6,4568.9,0.98452]
[1759746366941,3.2078,4569.6,4569.4,0.72846]
[1759746367136,0.219,4569.5,4569.4,0.72846]
[1759746367748,0.22135733,4569.5,4569.4,0.3347]
[1759746373249,0.00235733,4569.5,4569.4,0.3347]
[1759746373652,0.22135733,4569.5,4569.4,0.3347]
[1759746373952,0.22135733,4569.5,4569.3,41.19377]
[1759746374146,0.00235733,4569.5,4569.3,41.19377]
[1759746374456,0.219,4569.4,4569.3,41.19377]
[1759746374751,0.61276,4569.4,4568.7,0.98456]
[1759746375150,0.61276,4569.4,4568.9,0.3938]
[1759746375151,0.39379,4569.1,4568.9,0.3938]
[1759746375347,0.219,4569.0,4568.9,0.3938]
[1759746376646,0.219,4569.0,4568.6,40.8]
[1759746376852,0.219,4569.0,4568.5,0.39383]
[1759746376853,0.39383,4568.7,4568.5,0.39383]
[1759746377054,0.219,4568.6,4567.9,3.2078]
[1759746377246,0.219,4568.6,4568.0,40.8]
[1759746377454,0.219,4568.6,4568.4,0.39385]
[1759746379151,0.48244967,4568.5,4568.4,0.39385]
[1759746380351,0.48244967,4568.5,4568.0,40.8]
[1759746380547,0.39388,4568.1,4567.9,3.2078]
[1759746380861,0.70064967,4568.0,4567.9,3.2078]
[1759746381556,0.70064967,4568.0,4567.9,3.60169]
[1759746381750,1.17908925,4568.7,4568.6,0.39383]
[1759746381956,1.17908925,4569.1,4568.8,1.12871]
[1759746382153,1.17908925,4569.4,4568.8,1.12871]
[1759746382359,3.4268,4568.9,4568.8,1.12871]
[1759746382758,3.2078,4568.9,4568.8,1.12871]
[1759746382959,3.4268,4568.9,4568.8,1.12871]
[1759746385375,0.219,4568.9,4568.8,1.12871]
[1759746385968,3.60157,4569.4,4569.3,0.7349]
[1759746386262,3.82057,4569.4,4569.3,0.7349]
[1759746386465,0.39383,4568.6,4568.5,0.1276]
[1759746386669,0.61283,4568.6,4568.5,0.5524]
[1759746386867,5.61283,4568.6,4568.5,0.5524]
[1759746388472,5.61283,4568.6,4568.5,0.8625]
[1759746390980,5.219,4568.6,4568.5,0.8625]
[1759746393781,5.69845824,4568.6,4568.5,0.8625]
[1759746394074,5.69845824,4568.6,4568.0,0.1276]
[1759746394075,0.39387,4568.1,4568.0,0.1276]
[1759746394275,3.82067,4568.1,4568.0,0.1276]
[1759746394479,4.30012824,4568.1,4568.0,0.1276]
[1759746395776,0.3939,4567.8,4567.7,0.3939]
[1759746396083,0.3939,4567.8,4567.5,0.39392]
[1759746396084,0.39392,4567.6,4567.5,0.39392]
[1759746396273,0.61292,4567.6,4567.5,0.39392]
[1759746396875,0.39393,4567.5,4567.4,0.39393]
[1759746397383,0.219,4567.6,4567.4,0.39393]
[1759746399082,0.61292,4567.6,4567.4,0.39393]
[1759746399284,0.219,4567.6,4567.4,0.39393]
[1759746403684,3.2078,4567.8,4567.7,0.39391]
[1759746403884,3.4268,4567.8,4567.7,0.39391]
[1759746404082,6.28038957,4567.8,4567.7,0.39391]
[1759746404283,3.4268,4567.8,4567.7,0.39391]
[1759746405879,3.2078,4567.8,4567.7,0.39391]
[1759746406085,3.2078,4568.4,4568.3,0.39386]
[1759746406286,3.68718725,4568.4,4568.3,0.39386]
[1759746406480,3.90618725,4568.4,4568.3,0.39386]
[1759746408285,0.39387,4568.2,4567.8,40.8]
[1759746408489,0.61288,4568.1,4568.0,0.39388]
[1759746408686,0.39389,4568.0,4567.8,40.8]
[1759746408887,0.219,4567.9,4567.8,41.1939]
[1759746409081,0.219,4567.9,4567.8,0.3939]
[1759746409277,0.3939,4567.8,4567.6,0.39391]
[1759746409482,0.219,4567.7,4567.6,41.19391]
[1759746409684,0.39389,4568.0,4567.8,0.39389]
[1759746409886,0.7714,4567.9,4567.8,0.39389]
[1759746411389,0.556,4567.9,4567.8,0.39389]
[1759746412088,0.337,4567.9,4567.8,0.39389]
[1759746412287,0.337,4567.9,4567.8,3.60169]
[1759746412590,0.556,4567.9,4567.8,3.60169]
[1759746413185,0.337,4567.9,4567.8,3.60169]
[1759746413385,0.556,4567.9,4567.8,3.60169]
[1759746413786,0.337,4567.9,4567.8,3.60169]
[1759746413986,0.556,4567.9,4567.8,3.60169]
[1759746414186,0.3475,4568.0,4567.8,3.60169]
[1759746414396,0.219,4567.9,4567.8,3.60169]
[1759746416194,0.556,4567.9,4567.8,3.60169]
[1759746416795,0.556,4567.9,4567.8,3.60089]
[1759746417592,1.0358477,4567.9,4567.8,3.2078]
[1759746417794,0.98478,4567.7,4566.7,0.00209492]
[1759746418094,3.60177,4567.1,4566.7,0.39608492]
[1759746418298,0.6988477,4567.0,4566.8,0.39398]
[1759746418497,2.84602979,4567.0,4566.8,0.39398]
[1759746418688,0.61298,4566.9,4566.7,0.00209492]
[1759746418888,0.219,4566.8,4566.7,0.00209492]
[1759746419184,0.556,4566.8,4566.7,0.39608492]
[1759746422697,0.337,4566.8,4566.7,3.60388492]
[1759746423194,0.556,4566.8,4566.7,3.60388492]
[1759746423594,0.337,4566.8,4566.7,3.60388492]
[1759746423795,3.2078,4567.7,4567.6,0.39392]
[1759746424000,3.4268,4567.7,4567.6,0.39392]
[1759746424194,3.2078,4567.7,4567.6,0.39392]
[1759746424389,3.4268,4567.7,4567.6,0.39392]
[1759746425994,0.219,4567.7,4567.6,0.39392]
[1759746427296,0.0218,4568.1,4568.0,0.39388]
[1759746427498,0.2408,4568.1,4568.0,0.39388]
[1759746427694,0.0218,4568.1,4568.0,0.39388]
[1759746427901,0.2408,4568.1,4568.0,0.39388]
[1759746428797,0.0218,4568.1,4568.0,0.39388]
[1759746428996,0.219,4568.1,4568.0,0.39388]
[1759746429805,0.39384,4568.5,4568.3,0.39385]
[1759746430098,0.219,4568.4,4568.3,0.39385]
[1759746430303,3.00267827,4568.4,4568.3,0.39385]
[1759746430706,3.26637843,4568.4,4568.3,0.39385]
[1759746431006,3.48537843,4568.4,4568.3,0.39385]
[1759746431405,0.48270016,4568.4,4568.3,0.39385]
[1759746431706,0.70170016,4568.4,4568.3,0.39385]
[1759746432702,3.2296,4568.8,4568.7,0.39382]
[1759746432907,0.2408,4568.8,4568.7,0.39382]
[1759746433902,0.0218,4568.8,4568.6,0.39382]
[1759746434104,0.70144702,4568.7,4568.3,0.39385]
[1759746434402,0.39383,4568.6,4567.9,3.2078]
[1759746434608,0.39383,4568.6,4568.0,40.8]
[1759746434906,0.39384,4568.5,4568.3,0.39386]
[1759746435704,0.2154,4568.4,4568.3,0.39386]
[1759746435901,0.7611,4568.4,4568.3,0.39386]
[1759746443818,0.9801,4568.4,4568.3,0.39386]
[1759746447714,0.7611,4568.4,4568.3,0.39386]
[1759746448219,0.9801,4568.4,4568.3,0.39386]
[1759746452127,1.46376767,4568.4,4568.3,0.39386]
[1759746452928,1.46296767,4568.4,4568.3,0.39386]
[1759746453227,1.46313634,4568.4,4568.3,0.39386]
[1759746453919,0.9793,4568.4,4568.3,0.39386]
[1759746454119,1.46325897,4568.4,4568.3,0.39386]
[1759746454328,1.24425897,4568.4,4568.3,0.39386]
[1759746454527,1.46325897,4568.4,4568.3,0.39386]
[1759746454825,1.24425897,4568.4,4568.3,0.39386]
[1759746455218,1.46325897,4568.4,4568.3,0.39386]
[1759746455724,0.9793,4568.4,4568.3,0.39386]
[1759746456125,1.46347562,4568.4,4568.3,0.39386]
[1759746456725,1.24447562,4568.4,4568.3,0.39386]
[1759746456929,1.46347562,4568.4,4568.3,0.39386]
[1759746461433,1.24447562,4568.4,4568.3,0.39386]
[1759746461727,1.46347562,4568.4,4568.3,0.39386]
[1759746463223,1.24447562,4568.4,4568.3,0.39386]
[1759746463423,1.46347562,4568.4,4568.3,0.39386]
[1759746463832,0.48417562,4568.4,4568.3,0.39386]
[1759746464329,0.70317562,4568.4,4568.3,0.39386]
[1759746465831,1.46237562,4568.4,4568.3,0.39386]
[1759746466129,1.24337562,4568.4,4568.3,0.39386]
[1759746466331,1.46237562,4568.4,4568.3,0.39386]
[1759746466529,0.5575,4568.0,4567.9,2.868]
[1759746466729,0.5575,4567.5,4567.4,3.60173]
[1759746466924,1.59457562,4567.5,4567.4,3.60173]
[1759746467131,1.59457562,4567.5,4567.4,44.40173]
[1759746469331,1.37557562,4567.5,4567.4,44.40173]
[1759746469536,1.59457562,4567.5,4567.4,44.40173]
[1759746469933,1.37557562,4567.5,4567.4,44.40173]
[1759746470233,1.59457562,4567.5,4567.4,44.40173]
[1759746474933,1.1104,4567.5,4567.4,44.40173]
[1759746477441,0.8914,4567.5,4567.4,44.40173]
[1759746477741,1.1104,4567.5,4567.4,44.40173]
[1759746478842,0.8914,4567.5,4567.4,44.40173]
[1759746479040,0.1322,4568.0,4567.9,0.39389]
[1759746479237,0.1322,4568.0,4567.9,3.91119]
[1759746479238,0.5688,4568.0,4567.9,3.91119]
[1759746479438,0.5688,4568.0,4567.9,0.70339]
[1759746479638,0.5688,4568.0,4567.9,3.91119]
[1759746480039,0.4366,4568.0,4567.9,3.91119]
[1759746480746,0.4366,4568.0,4567.9,0.70339]
[1759746482950,0.4366,4568.0,4567.9,3.91119]
[1759746483844,0.219,4568.2,4568.1,0.39387]
[1759746489651,0.219,4568.2,4568.1,0.39307]
[1759746489853,0.6556,4568.2,4568.1,1.13237]
[1759746490247,1.45676638,4568.2,4568.1,1.13237]
[1759746491457,1.45676638,4568.2,4568.1,0.90957]
[1759746493552,1.45676638,4568.2,4568.1,1.13237]
[1759746494247,0.70316638,4568.2,4568.1,1.13237]
[1759746494850,0.48416638,4568.2,4568.1,1.13237]
[1759746495045,0.70316638,4568.2,4568.1,1.13237]
[1759746497959,0.69486638,4568.2,4568.1,1.13237]
[1759746498160,0.91386638,4568.2,4568.1,1.13237]
[1759746498550,0.48416638,4568.2,4568.1,1.13237]
[1759746498753,0.0218,4568.4,4568.3,1.15446]
[1759746498960,0.72539997,4568.4,4568.3,1.15446]
[1759746499259,0.70359997,4568.4,4568.3,1.15446]
[1759746501263,0.7395,4569.0,4568.9,1.15441]
[1759746501467,1.44307163,4569.0,4568.9,1.15441]
[1759746501860,0.91397163,4569.0,4568.9,1.15441]
[1759746502167,0.48457163,4569.0,4568.9,1.15441]
[1759746502364,0.70357163,4569.0,4568.9,1.15441]
[1759746502965,0.21305733,4569.5,4569.4,0.83076]
[1759746503169,0.43205733,4569.5,4569.4,1.15436]
[1759746504060,0.00235733,4569.5,4569.4,1.15436]
[1759746504267,0.22135733,4569.5,4569.4,1.15436]
[1759746505362,0.43205733,4569.5,4569.4,1.15436]
[1759746508764,0.00235733,4569.5,4569.4,1.15436]
[1759746508970,0.22135733,4569.5,4569.4,1.15436]
[1759746509766,0.43205733,4569.5,4569.4,1.15436]
[1759746509967,0.65075733,4569.5,4569.4,1.15436]
[1759746510168,0.96085733,4569.5,4569.4,0.3236]
[1759746510368,0.7395,4569.4,4569.3,0.71736]
[1759746510572,0.7395,4569.4,4569.3,1.15436]
[1759746510864,0.4294,4569.4,4569.3,1.15436]
[1759746511666,0.7395,4569.4,4569.3,1.15436]
[1759746512960,0.2107,4569.4,4569.3,1.15436]
[1759746513661,0.00235733,4569.5,4569.4,0.5458]
[1759746513974,0.22135733,4569.5,4569.4,0.7606]
[1759746514174,0.43205733,4569.5,4569.4,0.7606]
[1759746515167,0.91376457,4569.5,4569.4,0.7606]
[1759746515973,0.43205733,4569.5,4569.4,0.7606]
[1759746516870,0.95095733,4569.5,4569.4,0.7606]
[1759746517272,0.95095733,4569.5,4569.4,0.3236]
[1759746517571,0.95095733,4569.5,4569.4,0.5321]
[1759746518176,0.95095733,4569.5,4569.4,0.7463]
[1759746521676,0.64165733,4569.5,4569.4,0.7463]
[1759746521877,0.95095733,4569.5,4569.4,0.7463]
[1759746524574,0.64165733,4569.5,4569.4,0.7463]
[1759746526480,0.64085733,4569.5,4569.4,0.7463]
[1759746527173,1.12339486,4569.5,4569.4,0.7463]
[1759746527778,1.43269486,4569.5,4569.4,0.7463]
[1759746530383,1.43269486,4569.5,4569.4,1.14006]
[1759746530578,1.12339486,4569.5,4569.4,1.14006]
[1759746531381,1.45319486,4569.5,4569.4,1.14006]
[1759746537188,1.12339486,4569.5,4569.4,1.14006]
[1759746537681,1.45319486,4569.5,4569.4,1.14006]
[1759746542391,1.12339486,4569.5,4569.4,1.14006]
[1759746543286,1.45319486,4569.5,4569.4,1.14006]
[1759746544284,1.12339486,4569.5,4569.4,1.14006]
[1759746544987,1.45319486,4569.5,4569.4,1.14006]
[1759746547887,0.7774,4568.9,4568.7,0.71732]
[1759746548089,1.14913753,4568.8,4568.3,0.3235]
[1759746548289,0.7774,4568.3,4568.2,4.02767]
[1759746548592,0.4425,4568.3,4568.2,44.82767]
[1759746548791,0.219,4568.3,4568.2,45.15117]
[1759746550196,0.3298,4568.8,4568.7,0.39382]
[1759746550197,0.7774,4568.8,4568.7,0.39382]
[1759746550497,1.48466045,4568.8,4568.7,0.71732]
[1759746550798,1.48466045,4568.8,4568.7,1.14332]
[1759746552895,1.48466045,4568.8,4568.7,0.5342]
[1759746553100,1.48466045,4568.8,4568.4,0.39384]
[1759746553101,0.4476,4568.5,4568.4,0.39384]
[1759746553296,1.37316045,4568.5,4568.4,0.39384]
[1759746553500,1.26566045,4568.5,4568.4,0.92804]
[1759746556591,1.26566045,4568.5,4568.4,1.14334]
[1759746559700,0.48826045,4568.5,4568.4,1.14334]
[1759746559900,0.70726045,4568.5,4568.4,1.14334]
[1759746560095,1.44436045,4568.5,4568.4,1.14334]
[1759746560299,1.55186045,4568.5,4568.4,0.39384]
[1759746560500,1.44436045,4568.5,4568.4,0.92774]
[1759746560699,1.12656045,4568.5,4568.4,1.14974]
[1759746561503,1.44436045,4568.5,4568.4,1.14974]
[1759746562503,1.12656045,4568.5,4568.4,1.14974]
[1759746562704,1.12656045,4568.5,4568.4,1.14894]
[1759746564108,0.69976045,4568.5,4568.4,1.14894]
[1759746564308,0.91876045,4568.5,4568.4,1.14894]
[1759746565706,0.4305,4568.5,4568.4,1.14894]
[1759746565904,0.0218,4569.0,4568.5,0.1272]
[1759746566208,0.0218,4569.0,4568.9,0.92771]
[1759746566209,0.7589,4569.0,4568.9,0.92771]
[1759746566408,1.46659818,4569.0,4568.9,0.92771]
[1759746566609,4.28260153,4569.0,4568.9,0.92771]
[1759746566910,1.44479818,4569.0,4568.9,0.92771]
[1759746567210,1.44479818,4569.0,4568.9,0.70601]
[1759746567805,0.60532,4568.8,4568.7,0.39382]
[1759746568012,1.22579818,4568.8,4568.7,0.39382]
[1759746568912,1.22579818,4568.8,4568.7,0.92772]
[1759746571714,1.22579818,4568.8,4568.7,1.14972]
[1759746571915,1.22579818,4568.8,4568.7,0.92772]
[1759746573204,0.2115,4567.8,4567.7,3.2078]
[1759746573405,0.9561,4567.8,4567.7,0.92781]
[1759746574016,0.9561,4567.8,4567.7,1.14981]
[1759746575218,0.9561,4567.8,4567.7,0.7559]
[1759746575416,1.44531549,4567.8,4567.7,0.7559]
[1759746579729,1.44531549,4567.8,4567.7,0.5199]
[1759746579928,1.44531549,4567.8,4567.7,0.7364]
[1759746580524,1.83921549,4567.8,4567.1,0.3356]
[1759746580730,0.2254,4567.2,4567.1,0.7598]
[1759746580925,0.4444,4567.2,4567.1,0.7598]
[1759746581133,0.4444,4567.2,4567.1,41.95376]
[1759746581333,0.219,4567.2,4567.1,41.95376]
[1759746586440,0.9946,4567.2,4567.1,0.7598]
[1759746588436,0.9946,4567.2,4567.1,0.5433]
[1759746588933,0.9946,4567.2,4566.9,0.39397]
[1759746588934,0.4348,4567.1,4566.9,0.39397]
[1759746589138,0.7509,4567.0,4566.9,0.71067]
[1759746589336,0.7509,4567.0,4566.9,0.92117]
[1759746590338,0.7509,4567.0,4566.9,1.12647]
[1759746591234,0.4348,4567.0,4566.9,1.12647]
[1759746591737,0.2097,4567.0,4566.9,1.12647]
[1759746593334,0.3161,4567.7,4567.6,0.2105]
[1759746593634,3.4175,4568.3,4568.2,1.12637]
[1759746593834,4.35016023,4568.3,4568.2,1.12637]
[1759746594033,7.25281286,4568.3,4568.2,1.12637]
[1759746594236,7.03381286,4568.3,4568.2,1.12637]
[1759746594433,4.12506023,4568.3,4568.2,1.12637]
[1759746594639,3.90606023,4568.3,4568.2,1.12637]
[1759746594836,4.12506023,4568.3,4568.2,1.12637]
[1759746596332,0.91726023,4568.3,4568.2,1.12637]
[1759746597638,1.45846023,4568.3,4568.2,1.12637]
[1759746597835,1.45846023,4568.3,4568.2,0.7325]
[1759746598929,1.45766023,4568.3,4568.2,0.7325]
[1759746600235,1.14156023,4568.3,4568.2,0.7325]
[1759746600540,0.91646023,4568.3,4568.2,0.7325]
[1759746600937,0.48856023,4568.3,4568.2,0.7325]
[1759746601235,0.0218,4568.5,4568.4,0.7325]
[1759746601437,0.73000501,4568.5,4568.4,0.7325]
[1759746601637,0.70820501,4568.5,4568.4,0.7325]
[1759746601836,0.70820501,4568.5,4568.4,41.5325]
[1759746602236,0.70819491,4568.5,4568.4,41.5325]
[1759746603235,0.219,4568.5,4568.4,41.5325]
[1759746603436,0.7081742,4568.5,4568.4,41.5325]
[1759746603941,0.4891742,4568.5,4568.4,41.5325]
[1759746604442,0.219,4568.5,4568.4,41.5325]
[1759746604832,0.0218,4568.7,4568.6,0.7325]
[1759746605038,0.72985844,4568.7,4568.6,0.7325]
[1759746605239,0.93955844,4568.7,4568.6,0.7325]
[1759746606330,0.4505,4568.7,4568.6,0.7325]
[1759746606536,0.6756,4568.7,4568.5,0.39384]
[1759746606838,0.7509,4568.6,4568.5,0.71054]
[1759746607239,0.7509,4568.6,4568.5,1.25194]
[1759746607439,0.2408,4568.7,4568.5,1.25194]
[1759746607635,0.2408,4568.7,4568.6,0.5272]
[1759746607840,0.4505,4568.7,4568.6,0.7325]
[1759746608142,0.69853008,4568.7,4568.6,0.7325]
[1759746608641,0.91753008,4568.7,4568.6,0.7325]
[1759746610246,1.14263008,4568.7,4568.6,0.7325]
[1759746610544,1.45873008,4568.7,4568.6,0.7325]
[1759746611941,0.4348,4568.2,4568.1,0.3167]
[1759746612143,4.1777,4568.2,4568.0,0.39388]
[1759746612344,3.8616,4568.2,4568.0,0.71058]
[1759746612644,0.7509,4568.1,4568.0,0.3167]
[1759746612848,0.7509,4567.7,4567.6,0.92112]
[1759746613147,0.9699,4567.7,4567.6,0.71062]
[1759746613750,0.6538,4567.7,4567.6,1.12642]
[1759746617454,0.9699,4567.7,4567.6,1.12642]
[1759746619150,0.9699,4567.7,4567.6,0.5272]
[1759746619449,0.9699,4567.7,4567.6,0.3167]
[1759746620047,0.6538,4567.7,4567.5,0.70342]
[1759746620255,1.2323027,4567.6,4567.5,0.70342]
[1759746621053,1.2323027,4567.6,4567.5,0.91232]
[1759746621360,1.2323027,4567.6,4567.5,0.70342]
[1759746621562,1.2323027,4567.6,4567.5,0.91232]
[1759746621761,1.2323027,4567.6,4567.5,1.26062]
[1759746622059,0.9176027,4567.6,4567.5,1.26062]
[1759746623056,1.2323027,4567.6,4567.5,1.12742]
[1759746624162,1.2323027,4567.6,4567.5,1.26062]
[1759746624962,0.4887027,4567.6,4567.5,1.26062]
[1759746625163,3.4206,4568.2,4568.1,1.12737]
[1759746625459,4.34482657,4568.2,4568.1,1.12737]
[1759746625764,4.65952657,4568.2,4568.1,1.12737]
[1759746626357,0.7086,4567.8,4567.7,0.3939]
[1759746626559,1.84562657,4567.8,4567.7,0.3939]
[1759746626762,1.84562657,4567.8,4567.7,0.7034]
[1759746626958,1.84562657,4567.8,4567.7,0.9123]
[1759746627263,1.3565,4567.8,4567.7,0.9123]
[1759746627957,0.9626,4567.8,4567.7,1.1274]
[1759746628257,0.6479,4567.8,4567.7,1.1274]
[1759746629261,0.219,4567.8,4567.7,1.1274]
[1759746629764,0.5308,4568.1,4568.0,0.91228]
[1759746629957,1.45122485,4568.1,4568.0,0.91228]
[1759746630264,1.45122485,4568.1,4568.0,1.26058]
[1759746634263,1.23222485,4568.1,4568.0,1.26058]
[1759746634472,1.45122485,4568.1,4568.0,1.26058]
[1759746634661,1.45122485,4568.1,4568.0,1.12738]
[1759746635268,1.23222485,4568.1,4568.0,1.24988]
[1759746635567,1.45122485,4568.1,4568.0,1.24908]
[1759746635863,1.13652485,4568.1,4568.0,1.24908]
[1759746636070,1.45992485,4568.1,4568.0,1.24908]
[1759746639066,1.02812485,4568.1,4568.0,1.24908]
[1759746639372,0.48862485,4568.1,4568.0,1.24908]
[1759746639566,0.70762485,4568.1,4568.0,1.24908]
[1759746639964,0.91472485,4568.1,4568.0,1.24908]
[1759746640759,1.46122485,4568.1,4568.0,0.856]
[1759746641068,1.46122485,4568.1,4568.0,0.3095]
[1759746641263,1.46122485,4568.1,4568.0,0.5248]
[1759746644375,1.46122485,4568.1,4568.0,0.3095]
[1759746645674,4.55574783,4568.1,4567.6,0.3145]
[1759746645973,0.2071,4566.8,4566.7,0.21739492]
[1759746646172,1.46122485,4566.8,4566.7,0.53189492]
[1759746646568,0.4302,4566.5,4566.1,0.3145]
[1759746646772,0.94054,4566.2,4566.1,0.5298]
[1759746646977,1.85526485,4566.2,4566.1,0.5298]
[1759746647178,1.46122485,4566.2,4566.1,0.7416]
[1759746647680,1.46393646,4566.2,4566.1,0.74419349]
[1759746650680,1.46393646,4566.2,4566.1,0.53239349]
[1759746651276,1.46393646,4566.2,4566.1,0.75859349]
[1759746651678,1.46393646,4566.2,4566.1,0.53239349]
[1759746651881,1.46393646,4566.2,4566.1,0.00259349]
[1759746654675,1.46393646,4566.2,4566.1,0.31669349]
[1759746654876,1.46393646,4566.2,4566.1,0.53459349]
[1759746655889,0.97531161,4566.2,4566.1,0.53459349]
[1759746659788,0.22171161,4566.2,4566.1,0.76079349]
[1759746659988,0.43041161,4566.2,4566.1,0.76079349]
[1759746660391,0.98951161,4566.2,4566.1,0.76079349]
[1759746661490,0.98951161,4566.2,4566.1,0.00259349]
[1759746661784,0.60281,4565.4,4565.3,0.3141]
[1759746661991,1.38091,4565.4,4565.3,0.3141]
[1759746662492,0.6488,4565.4,4565.3,0.7582]
[1759746662685,0.6488,4565.4,4565.3,0.76098743]
[1759746662878,0.9868,4565.4,4565.3,0.76098743]
[1759746663081,0.9868,4565.4,4565.3,0.53478743]
[1759746663284,0.9868,4565.4,4565.3,0.00278743]
[1759746663588,0.9868,4565.4,4565.3,0.53478743]
[1759746665093,3.87107967,4565.4,4565.3,0.31688743]
[1759746666693,0.4298,4564.8,4564.7,0.61207]
[1759746666881,0.9868,4564.8,4564.7,0.61207]
[1759746667085,0.9868,4564.8,4564.7,0.92617]
[1759746667286,0.9868,4564.8,4564.7,1.15237]
[1759746667790,0.9868,4564.8,4564.7,1.15457943]
[1759746670491,0.9868,4564.8,4564.7,0.31630943]
[1759746670790,0.9868,4564.8,4564.7,0.00220943]
[1759746671293,0.9868,4564.8,4564.7,0.31630943]
[1759746671894,0.986,4564.8,4564.7,0.31630943]
[1759746672394,0.986,4564.8,4564.7,0.00220943]
[1759746673495,0.986,4564.8,4564.7,0.31630943]
[1759746673999,0.986,4564.8,4564.7,0.76040943]
[1759746674790,0.767,4564.8,4564.7,0.76040943]
[1759746674993,0.648,4564.8,4564.7,0.76040943]
[1759746675490,0.429,4564.8,4564.7,0.76040943]
[1759746675691,0.648,4564.8,4564.7,0.76040943]
[1759746679388,1.3897,4565.0,4564.9,0.4442]
[1759746679592,0.2409,4565.0,4564.9,0.7763]
[1759746679899,0.7783,4565.5,4565.4,1.17041]
[1759746680098,1.16269729,4565.5,4565.4,1.17041]
[1759746680398,4.06078934,4565.5,4565.4,1.17041]
[1759746681291,0.00271161,4566.2,4565.4,1.17041]
[1759746681292,3.21051161,4566.2,4565.4,1.17041]
[1759746681594,3.98881161,4566.2,4566.1,0.7763]
[1759746681796,4.70148702,4566.2,4566.1,1.17035]
[1759746681987,7.29374685,4566.2,4566.1,1.17035]
[1759746682191,7.51274685,4566.2,4566.1,1.17035]
[1759746682387,6.96564685,4566.2,4566.1,1.17035]
[1759746682690,3.92318702,4566.2,4566.1,1.17035]
[1759746682890,0.71538702,4566.2,4566.1,1.17035]
[1759746683397,0.00271161,4566.2,4566.1,4.37815]
[1759746683586,0.22171161,4566.2,4566.1,4.37815]
[1759746685796,0.71552373,4566.2,4566.1,4.37815]
[1759746686897,1.16572373,4566.2,4566.1,4.37815]
[1759746687091,0.3281,4566.1,4565.6,3.2078]
[1759746687398,0.2237,4565.7,4565.6,4.37819]
[1759746687600,0.219,4565.7,4565.6,4.37819]
[1759746687895,0.219,4565.7,4565.6,45.17819]
[1759746688702,0.219,4565.7,4565.6,4.37819]
[1759746694307,1.0841,4565.9,4565.6,4.37819]
[1759746694611,1.0841,4565.9,4565.8,1.15097]
[1759746694801,1.3031,4565.9,4565.8,1.15097]
[1759746695002,1.0841,4565.9,4565.8,1.15097]
[1759746695202,1.3031,4565.9,4565.8,1.15097]
[1759746697611,1.2812,4565.9,4565.8,1.15097]
[1759746697910,1.0622,4565.9,4565.8,1.15097]
[1759746698514,1.2812,4565.9,4565.8,1.15097]
[1759746699215,1.0622,4565.9,4565.8,1.15097]
[1759746699414,1.2812,4565.9,4565.8,1.15097]
[1759746699906,1.0622,4565.9,4565.8,1.15097]
[1759746700114,1.2812,4565.9,4565.8,1.15097]
[1759746700415,1.0622,4565.9,4565.8,1.15097]
[1759746703519,1.2862,4565.9,4565.8,1.15097]
[1759746708315,1.2862,4565.9,4565.8,1.15017]
[1759746709118,1.0622,4565.9,4565.8,1.15017]
[1759746709318,1.2812,4565.9,4565.8,1.15017]
[1759746710023,1.5021,4565.9,4565.8,1.15017]
[1759746711223,2.33463777,4565.9,4565.8,1.15017]
[1759746711523,2.54353777,4565.9,4565.8,1.15017]
[1759746712118,3.78213777,4565.9,4565.8,1.15017]
[1759746713320,1.85524,4565.9,4565.8,1.15017]
[1759746713520,1.4595,4565.9,4565.8,1.15017]
[1759746713828,1.2386,4565.9,4565.8,1.15017]
[1759746714528,1.2386,4565.9,4565.8,41.95017]
[1759746718219,0.219,4566.4,4566.3,0.4315]
[1759746718417,0.3373,4567.1,4567.0,0.52057]
[1759746718625,0.93503618,4567.1,4567.0,4.49017]
[1759746719017,1.14393618,4567.1,4567.0,4.49017]
[1759746719217,1.48364046,4567.1,4567.0,4.49017]
[1759746720124,1.14634046,4567.1,4567.0,4.49017]
[1759746720326,0.49754046,4567.1,4567.0,4.49017]
[1759746720632,0.7671,4568.2,4568.1,0.5565]
[1759746720926,1.48098014,4568.2,4568.1,0.95037]
[1759746721329,1.48098014,4568.2,4568.1,0.72417]
[1759746721720,1.48256852,4568.2,4568.1,0.39615092]
[1759746722537,1.48256852,4568.2,4568.1,0.00228092]
[1759746725930,12.59024015,4568.2,4568.1,0.00228092]
[1759746726126,12.59024015,4568.2,4567.2,3.5381]
[1759746726127,0.5374,4567.5,4567.4,0.39393]
[1759746726328,0.2209,4566.7,4566.6,0.3303]
[1759746726629,0.2209,4566.1,4565.8,0.39407]
[1759746726825,0.2209,4565.2,4565.1,1.15593]
[1759746727032,0.7671,4565.2,4565.1,1.15593]